{"text_format":"1","workbook":"xlsx","n_sheets":2,"sheets":["T.Φ.155 2023","Country Codes"],"not_rendered":{"charts":0,"images":1,"macros":1,"external_links":0,"defined_names":7,"comments":0,"pivot_tables":0},"unopened":[],"bounds":{"document_bytes":16777216,"sheet_cells":100000,"rows_first":2000,"rows_last":500,"rows_between":2000,"halvings":0,"cell_chars":16384,"cell_head_chars":4096},"cells_cut":0,"cells_raw":0,"read":"whole","date_system":"1900"}

{"sheet":"T.Φ.155 2023","index":0,"n_rows":14,"n_cols":11,"rows_kept":14,"cut":false,"hidden":false,"merged":[[3,2,3,4],[3,5,3,7],[3,8,3,10],[2,2,2,4],[2,5,2,7],[2,8,2,10],[0,2,0,3],[0,4,0,10],[1,4,1,10],[1,2,1,3]]}
[null,"ΟΝΟΜΑ ΕΤΑΙΡΕΙΑΣ","ΑΦΤ",null,"ΠΛΗΡΟΦΟΡΙΕΣ ΕΠΙΚΟΙΝΩΝΙΑΣ"]
[]
[null,"ΕΤΟΣ",2019,null,null,2020,null,null,2021]
[null,"1. Έχετε διεκδικήσει μέτρα απλούστευσης (simplification measures) κατά τη διάρκεια του έτους (ως η Ερμηνευτική Εγκύκλιος 3 – Φόρος Εισοδήματος) ","ΝΑΙ/ΌΧΙ",null,null,"ΝΑΙ/ΌΧΙ",null,null,"ΝΑΙ/ΟΧΙ"]
[null,"2. Για κάθε έτος στο οποίο απαντήσατε ΝΑΙ στην ερώτηση 1,  σημειώστε για κάθε δάνειο [1] για το οποίο έχετε διεκδικήσει μέτρα απλούστευσης \n(ι) το ύψοστ του δανείο και \n(ii)   τα κράτη στα οποία έχουν τη φορολογική τους κατοικία [2] οι εταιρείες, οι οποίες αποτελούν μέλη της συναλλαγής back-to-back","(i)    το ύψος του δανείου €,","(ιι)\n ΚΡΑΤΟΣ 1","(ιι)\n ΚΡΑΤΟΣ 2","(i)    το ύψος του δανείου €,","(ιι)\n ΚΡΑΤΟΣ 1","(ιι)\n ΚΡΑΤΟΣ 2","(i)    το ύψος του δανείου €,","(ιι)\n ΚΡΑΤΟΣ 1","(ιι)\n ΚΡΑΤΟΣ 2"]
[null,"Δάνειο 1"]
[null,"Δάνειο 2"]
[null,"Δάνειο 3"]
[null,"Δάνειο 4"]
[null,"Δανειο 5"]
[null,"Δανειο 6"]
[]
[null,"[1] Σε περίπτωση που έχετε διεκδικήσει μέτρα απλούστευσης σε πέραν του ενός δανείου με τα ίδια πρόσωπα, παρακαλώ δηλώστε το συνολικό ποσό των δανείων αυτών σε μια γραμμή."]
[null,"[2] Σε περίπτωση που δεν γνωρίζετε το κράτος φορολογικής κατοικίας, δηλώστε το κράτος σύστασης."]

{"sheet":"Country Codes","index":1,"n_rows":244,"n_cols":9,"rows_kept":244,"cut":false,"hidden":true,"merged":[]}
["COUNTRY CODE","COUNTRY_NAME",null,"ΕΟΧ","για γεσυ","LEN",null,null,"ΝΑΙ/ΌΧΙ"]
[329,"ΑΓΙΑ ΕΛΕΝΗ","SH",null,null,{"$f":"+LEN(B2)","v":10},null,null,"ΝΑΙ"]
[465,"ΑΓΙΑ ΛΟΥΚΙΑ","LC",null,null,{"$f":"+LEN(B3)","v":11},null,null,"ΌΧΙ"]
[467,"ΑΓΙΟΣ ΒΙΚΕΝΤΙΝΟΣ ΚΑΙ ΤΡΕΝΑΔΙΝΕΣ","VC",null,null,31]
[330,"ΑΓΚΟΛΑ","AO",null,null,6]
[78,"ΑΖΕΡΜΠΑΙΣΤΑΝ","AZ",null,null,12]
[220,"ΑΙΓΥΠΤΟΣ","EG",null,null,8]
[334,"ΑΙΘΙΟΠΙΑ","ET",null,null,8]
[452,"ΑΙΤΗ","HT",null,null,4]
[272,"ΑΚΤΗ ΕΛΕΦΑΝΤΟΣΤΟΥ","CI",null,null,17]
[70,"ΑΛΒΑΝΙΑ","AL",null,null,7]
[208,"ΑΛΓΕΡΙΑ","DZ",null,null,7]
[999,"ΑΛΛΗ",null,null,null,4]
[821,"ΑΜΕΡΙΚΑΝΙΚΗ ΣΑΜΟΑ","AS",null,null,17]
[810,"ΑΜΕΡΙΚΑΝΙΚΗ ΩΚΕΑΝΙΑ","XA",null,null,19]
[702,"ΑΝΑΤΟΛΙΚΟ ΤΙΜΟΡ","TL",null,null,15]
[43,"ΑΝΔΟΡΑ","AD",null,null,6]
[446,"ΑΝΚΟΥΙΛΑ","AI",null,null,8]
[825,"ΑΝΤΑΡΚΤΙΚΗ","AQ",null,null,10]
[459,"ΑΝΤΓΚΟΥΑ ΚΑΙ ΜΠΑΡΜΠΟΥΔΑ","AG",null,null,23]
[528,"ΑΡΓΕΝΤΙΝΗ","AR",null,null,9]
[77,"ΑΡΜΕΝΙΑ","AM",null,null,7]
[474,"ΑΡΟΥΜΠΑ","AW","Κάτω Χώρες","Κάτω Χώρες",7]
[800,"ΑΥΣΤΡΑΛΙΑ","AU",null,null,9]
[38,"ΑΥΣΤΡΙΑ","AT","Αυστρία","Αυστρία",7]
[660,"ΑΦΓΑΝΙΣΤΑΝ","AF",null,null,10]
[816,"ΒΑΝΟΥΑΤΟΥ","VU",null,null,9]
[45,"ΒΑΤΙΚΑΝΟ","VA",null,null,8]
[2,"ΒΕΛΓΙΟ","BE","Βέλγιο","Βέλγιο",6]
[484,"ΒΕΝΕΖΟΥΕΛΑ","VE",null,null,10]
[413,"ΒΕΡΜΟΥΔΕΣ","BM",null,null,9]
[690,"ΒΙΕΤΝΑΜ","VN",null,null,7]
[516,"ΒΟΛΙΒΙΑ","BO",null,null,7]
[724,"ΒΟΡΕΙΑ ΚΟΡΕΑ","KP",null,null,12]
[93,"ΒΟΣΝΙΑ - ΕΡΖΕΓΟΒΙΝΗ","BA",null,null,19]
[68,"ΒΟΥΛΓΑΡΙΑ","BG","Βουλγαρία","Βουλγαρία",9]
[508,"ΒΡΑΖΙΛΙΑ","BR",null,null,8]
[357,"ΒΡΕΤΤΑΝΙΚΗ ΠΕΡΙΟΧΗ ΙΝΔΙΚΟΥ ΩΚΕΑΝΟΥ","IO",null,null,34]
[1,"ΓΑΛΛΙΑ","FR","Γαλλία","Γαλλία",6]
[496,"ΓΑΛΛΙΚΗ ΓΟΥΙΑΝΑ","GF",null,null,15]
[822,"ΓΑΛΛΙΚΗ ΓΟΥΙΝΕΑ","PG",null,null,15]
[252,"ΓΑΜΒΙΑ","GM",null,null,6]
[4,"ΓΕΡΜΑΝΙΑ","DE","Γερμανία","Γερμανία",8]
[76,"ΓΕΩΡΓΙΑ","GE",null,null,7]
[44,"ΓΙΒΡΑΛΤΑΡ","GI",null,null,9]
[314,"ΓΚΑΜΠΟΝ","GA",null,null,7]
[276,"ΓΚΑΝΑ","GH",null,null,5]
[709,"ΓΚΟΥΑΜ","GU",null,null,6]
[488,"ΓΚΟΥΙΑΝΑ","GY",null,null,8]
[458,"ΓΟΥΑΔΕΛΟΥΠΗ","GP",null,null,11]
[416,"ΓΟΥΑΤΕΜΑΛΑ","GT",null,null,10]
[257,"ΓΟΥΙΑΝΑ - ΜΠΙΣΑΟΥ","GW",null,null,17]
[260,"ΓΟΥΙΝΕΑ","GN",null,null,7]
[473,"ΓΡΕΝΑΔΑ","GD",null,null,7]
[406,"ΓΡΟΙΝΛΑΝΔΙΑ","GL",null,null,11]
[8,"ΔΑΝΙΑ","DK","Δανία","Δανία",5]
[456,"ΔΟΜΙΝΙΚΑΝΗ ΔΗΜΟΚΡΑΤΙΑ","DO",null,null,21]
[451,"ΔΥΤΙΚΕΣ ΙΝΔΙΕΣ","WI",null,null,14]
[205,"ΔΥΤΙΚΗ ΣΑΧΑΡΑ","EH",null,null,13]
[428,"ΕΛ ΣΑΛΒΑΔΟΡ","SV",null,null,11]
[39,"ΕΛΒΕΤΙΑ","CH","Ελβετία","Ελβετία",7]
[9,"ΕΛΛΑΔΑ","GR","Ελλάδα","Ελλάδα",6]
[997,"ΕΡΥΘΡΑΙΑ","ER",null,null,8]
[53,"ΕΣΘΟΝΙΑ ","EE","Εσθονία","Εσθονία",8]
[322,"ΔΗΜΟΚΡΑΤΙΑ ΤΟΥ ΚΟΝΓΚΟ (ΖΑΙΡ)","CD",null,null,28]
[378,"ΖΑΜΒΙΑ","ZM",null,null,6]
[382,"ΖΙΜΠΑΠΟΥΕ","ZW",null,null,{"$f":"+LEN(B67)","v":9}]
[400,"Η.Π.Α","US",null,null,5]
[647,"ΗΝΩΜ.ΑΡΑΒ.ΕΜΙΡΑΤΑ","AE",null,null,17]
[6,"ΗΝΩΜΕΝΟ ΒΑΣΙΛΕΙΟ","GB","Ηνωμένο Βασίλειο","Ηνωμένο Βασίλειο",16]
[680,"ΘΑΥΛΑΝΔΗ","TH",null,null,8]
[732,"ΙΑΠΩΝΙΑ","JP",null,null,7]
[998,"ΙΕΡΟΥΣΑΛΗΜ","IL",null,null,10]
[664,"ΙΝΔΙΑ","IN",null,null,5]
[700,"ΙΝΔΟΝΗΣΙΑ","ID",null,null,9]
[628,"ΙΟΡΔΑΝΙΑ","JO",null,null,8]
[612,"ΙΡΑΚ","IQ",null,null,4]
[616,"ΙΡΑΝ","IR",null,null,4]
[7,"ΙΡΛΑΝΔΙΑ ","IE","Ιρλανδία","Ιρλανδία",9]
[310,"ΙΣΗΜΕΡΙΝΗ ΓΟΥΙΝΕΑ","GQ",null,null,17]
[500,"ΙΣΗΜΕΡΙΝΟΣ","EC",null,null,10]
[24,"ΙΣΛΑΝΔΙΑ","IS","Ισλανδία","Ισλανδία",8]
[11,"ΙΣΠΑΝΙΑ","ES","Ισπανία","Ισπανία",7]
[624,"ΙΣΡΑΗΛ","IL",null,null,6]
[5,"ΙΤΑΛΙΑ","IT","Ιταλία","Ιταλία",6]
[79,"ΚΑΖΑΚΣΤΑΝ","KZ",null,null,9]
[302,"ΚΑΜΕΡΟΥΝ","CM",null,null,8]
[696,"ΚΑΜΠΟΖΗ","KH",null,null,7]
[404,"ΚΑΝΑΔΑΣ","CA",null,null,7]
[644,"ΚΑΤΑΡ","QA",null,null,5]
[306,"ΚΕΝΤΡΟΑΦΡΙΚΑΝΙΚΗ ΔΗΜΟΚΡΑΤΙΑ","CF",null,null,27]
[346,"ΚΕΝΥΑ","KE",null,null,5]
[720,"ΚΙΝΑ","CN",null,null,4]
[83,"ΚΙΡΓΚΙΣΤΑΝ","KG",null,null,10]
[812,"ΚΙΡΙΜΠΑΤΙ","KI",null,null,9]
[318,"ΚΟΓΚΟ","CG",null,null,5]
[480,"ΚΟΛΟΜΒΙΑ","CO",null,null,8]
[375,"ΚΟΜΟΡΟΙ ΝΗΣΟΙ","KM",null,null,13]
[436,"ΚΟΣΤΑ ΡΙΚΑ","CR",null,null,10]
[448,"ΚΟΥΒΑ","CU",null,null,5]
[636,"ΚΟΥΒΕΙΤ","KW",null,null,7]
[92,"ΚΡΟΑΤΙΑ","HR","Κροατία","Κροατία",7]
[600,"ΚΥΠΡΟΣ ","CY","Κύπρος","Κύπρος",7]
[684,"ΛΑΟΣ","LA",null,null,4]
[395,"ΛΕΣΟΘΟ","LS",null,null,6]
[54,"ΛΕΤΟΝΙΑ ","LV","Λετονία","Λετονία",8]
[73,"ΛΕΥΚΟΡΩΣΙΑ","BY",null,null,10]
[604,"ΛΙΒΑΝΟΣ","LB",null,null,7]
[268,"ΛΙΒΗΡΙΑ","LR",null,null,7]
[216,"ΛΙΒΥΗ","LY",null,null,5]
[55,"ΛΙΘΟΥΑΝΙΑ","LT","Λιθουανία","Λιθουανία",9]
[14,"ΛΙΧΤΕΣΤΑΙΝ","LI","Λιχτενστάιν","Λιχτενστάιν",10]
[12,"ΛΟΥΞΕΜΒΟΥΡΓΟ","LU","Λουξεμβούργο","Λουξεμβούργο",12]
[377,"ΜΑΓΙΟΤ","YT",null,null,6]
[370,"ΜΑΔΑΓΑΣΚΑΡΗ","MG",null,null,11]
[743,"ΜΑΚΑΟ","MO",null,null,5]
[701,"ΜΑΛΑΙΣΙΑ","MY",null,null,8]
[386,"ΜΑΛΑΟΥΙ","MW",null,null,7]
[667,"ΜΑΛΔΙΒΕΣ","MV",null,null,8]
[232,"ΜΑΛΙ","ML",null,null,4]
[46,"ΜΑΛΤΑ ","MT","Μάλτα","Μάλτα",6]
[204,"ΜΑΡΟΚΟ","MA",null,null,6]
[462,"ΜΑΡΤΙΝΙΚΑ","MQ",null,null,9]
[373,"ΜΑΥΡΙΚΙΟΣ","MU",null,null,9]
[228,"ΜΑΥΡΙΤΑΝΙΑ","MR",null,null,10]
[412,"ΜΕΞΙΚΟ","MX",null,null,6]
[823,"ΜΙΚΡΟΝΗΣΙΑ","FM",null,null,10]
[716,"ΜΟΓΚΟΛΙΑ","MN",null,null,8]
[366,"ΜΟΖΑΜΒΙΚΗ","MZ",null,null,9]
[74,"ΜΟΛΔΑΒΙΑ","MD",null,null,8]
[13,"ΜΟΝΑΚΟ","MC",null,null,{"$f":"+LEN(B131)","v":6}]
[450,"ΜΟΝΤΣΕΡΑΤ","MS",null,null,9]
[666,"ΜΠΑΓΚΛΑΝΤΕΣ","BD",null,null,11]
[469,"ΜΠΑΡΜΠΑΝΤΟΣ","BB",null,null,11]
[453,"ΜΠΑΧΑΜΑΣ","BS",null,null,8]
[640,"ΜΠΑΧΡΕΙΝ","BH",null,null,8]
[421,"ΜΠΕΛΙΖ","BZ",null,null,6]
[284,"ΜΠΕΝΙΝ","BJ",null,null,6]
[391,"ΜΠΟΤΣΟΥΑΝΑ","BW",null,null,10]
[236,"ΜΠΟΥΡΚΙΝΑ ΦΑΣΟ","BF",null,null,14]
[328,"ΜΠΟΥΡΟΥΝΤΙ","BI",null,null,10]
[675,"ΜΠΟΥΤΑΝ","BT",null,null,7]
[703,"ΜΠΡΟΥΝΕΙ","BN",null,null,8]
[676,"ΜΥΑΝΜΑΡ","MM",null,null,7]
[389,"ΝΑΜΙΜΠΙΑ","NA",null,null,8]
[803,"ΝΑΟΥΡΟΥ","NR",null,null,7]
[804,"ΝΕΑ ΖΗΛΑΝΔΙΑ","NZ",null,null,12]
[814,"ΝΕΑ ΖΗΛΑΝΔΙΑ ΩΚΕΑΝΙΑ","XZ",null,null,20]
[809,"ΝΕΑ ΚΑΛΗΔΟΝΙΑ","NC",null,null,13]
[672,"ΝΕΠΑΛ","NP",null,null,5]
[376,"ΝΗΣΙ ΜΠΟΥΒΕΤ","BV",null,null,12]
[806,"ΝΗΣΙ ΣΟΛΟΜΩΝΤΟΣ","SB",null,null,15]
[704,"ΝΗΣΙ ΧΡΥΣΤΟΥΓΕΝΝΩΝ","CX",null,null,18]
[41,"ΝΗΣΙΑ ΦΑΡΟΕ","FO",null,null,11]
[463,"ΝΗΣΟΙ ΚΕΙΜΑΝ","KY",null,null,12]
[437,"ΝΗΣΟΙ ΚΟΚΟΣ","CC",null,null,11]
[833,"ΝΗΣΟΙ ΚΟΥΚ","CK",null,null,10]
[824,"ΝΗΣΟΙ ΜΑΡΣΑΛ","MH",null,null,12]
[811,"ΝΗΣΟΙ ΟΥΑΛΛΙΣ ΚΑΙ ΦΟΥΤΟΥΝΑ","WF",null,null,26]
[813,"ΝΗΣΟΙ ΠΙΤΚΑΙΡΝ","PN",null,null,14]
[454,"ΝΗΣΟΙ ΤΕΡΚΣ ΚΑΙ ΚΑΙΚΟΣ","TC",null,null,22]
[529,"ΝΗΣΟΙ ΦΩΛΚΛΑΝΤ","FK",null,null,14]
[240,"ΝΙΓΗΡΑΣ","NE",null,null,7]
[288,"ΝΙΓΗΡΙΑ","NG",null,null,7]
[432,"ΝΙΚΑΡΑΟΥΑ","NI",null,null,9]
[808,"ΝΙΟΥ","NU",null,null,4]
[28,"ΝΟΡΒΗΓΙΑ","NO","Νορβηγία","Νορβηγία",8]
[728,"ΝΟΤΙΑ ΚΟΡΕΑ","KR",null,null,11]
[388,"ΝΟΤΙΟΣ ΑΦΡΙΚΗ","ZA",null,null,13]
[460,"ΝΤΟΜΙΝΙΚΑ","DM",null,null,9]
[3,"ΟΛΛΑΝΔΙΑ","NL","Κάτω Χώρες","Κάτω Χώρες",8]
[478,"ΟΛΛΑΝΔΙΚΕΣ ΑΝΤΙΛΛΕΣ","AN","Κάτω Χώρες","Κάτω Χώρες",19]
[649,"ΟΜΑΝ","OM",null,null,4]
[424,"ΟΝΔΟΥΡΕΣ","AD",null,null,8]
[64,"ΟΥΓΓΑΡΙΑ ","HU","Ουγγαρία","Ουγγαρία",9]
[350,"ΟΥΓΚΑΝΤΑ","UG",null,null,8]
[81,"ΟΥΖΜΠΕΚΙΣΤΑΝ","UZ",null,null,12]
[72,"ΟΥΚΡΑΝΙΑ","UA",null,null,8]
[524,"ΟΥΡΟΥΓΟΥΑΗ","UY",null,null,10]
[662,"ΠΑΚΙΣΤΑΝ","PK",null,null,8]
[901,"ΠΑΛΑΙΣΤΙΝΗ","PS",null,null,10]
[818,"ΠΑΛΑΟΥ","PW",null,null,6]
[442,"ΠΑΝΑΜΑΣ","PA",null,null,7]
[801,"ΠΑΠΟΥΑ ΝΕΑ ΓΟΥΙΝΕΑ","PG",null,null,18]
[520,"ΠΑΡΑΓΟΥΑΗ","PY",null,null,9]
[461,"ΠΑΡΘΕΝΟΙ ΝΗΣΟΙ (ΒΡΕΤΑΝΙΚΕΣ)","VG",null,null,27]
[457,"ΠΑΡΘΕΝΟΙ ΝΗΣΟΙ (Η.Π.Α.)","VG",null,null,23]
[504,"ΠΕΡΟΥ","PE",null,null,5]
[890,"ΠΟΛΙΚΕΣ ΠΕΡΙΟΧΕΣ","XR",null,null,16]
[60,"ΠΟΛΩΝΙΑ","PL","Πολωνία","Πολωνία",7]
[10,"ΠΟΡΤΟΓΑΛΙΑ ","PT","Πορτογαλία","Πορτογαλία",11]
[455,"ΠΟΥΕΡΤΟ ΡΙΚΟ","PR",null,null,12]
[247,"ΠΡΑΣΙΝΟ ΑΚΡΩΤΗΡΙΟ","CV",null,null,17]
[372,"ΡΕΓΙΟΥΝΙΟΝ","RE",null,null,10]
[324,"ΡΟΥΑΝΤΑ","RW",null,null,{"$f":"+LEN(B195)","v":7}]
[66,"ΡΟΥΜΑΝΙΑ","RO","Ρουμανία","Ρουμανία",8]
[75,"ΡΩΣΙΑ","RU",null,null,5]
[408,"ΣΑΙΝ ΠΙΕΡ ΚΑΙ ΜΙΣΕΛΟΝ","PM",null,null,21]
[449,"ΣΑΙΝΤ ΚΙΤΣ ΚΑΙ ΝΕΒΙΣ","KN",null,null,20]
[819,"ΣΑΜΟΑ","WS",null,null,5]
[47,"ΣΑΝ ΜΑΡΙΝΟ","SM",null,null,10]
[311,"ΣΑΟΥ ΤΟΜΕ ΚΑΙ ΠΡΙΝΣΙΠΕ","ST",null,null,22]
[632,"ΣΑΟΥΔΙΚΗ ΑΡΑΒΙΑ","SA",null,null,15]
[248,"ΣΕΝΕΓΑΛΗ","SN",null,null,8]
[22,"ΣΕΟΥΤΑ ","XC",null,null,7]
[22,"ΜΕΛΙΓΙΑ","XL",null,null,7]
[94,"ΣΕΡΒΙΑ ΚΑΙ ΜΑΥΡΟΒΟΥΝΙΟ","ME",null,null,22]
[355,"ΣΕΥΧΕΛΛΕΣ","SC",null,null,9]
[706,"ΣΙΓΚΑΠΟΥΡΗ","SG",null,null,10]
[264,"ΣΙΕΡΡΑ ΛΕΟΝΕ","SL",null,null,12]
[96,"ΣΚΟΠΙΑ","MK",null,null,6]
[63,"ΣΛΟΒΑΚΙΑ","SK","Σλοβακία","Σλοβακία",8]
[91,"ΣΛΟΒΕΝΙΑ","SI","Σλοβενία","Σλοβενία",8]
[342,"ΣΟΜΑΛΙΑ","SO",null,null,7]
[393,"ΣΟΥΑΖΙΛΑΝΔΗ","SZ",null,null,11]
[224,"ΣΟΥΔΑΝ","SD",null,null,6]
[30,"ΣΟΥΗΔΙΑ","SE","Σουηδία","Σουηδία",7]
[492,"ΣΟΥΡΙΝΑΜ","SR",null,null,8]
[669,"ΣΡΙ ΛΑΝΚΑ","LK",null,null,9]
[608,"ΣΥΡΙΑ","SY",null,null,5]
[736,"ΤΑΙΒΑΝ","TW",null,null,6]
[352,"ΤΑΝΖΑΝΙΑ","DM",null,null,8]
[82,"ΤΑΤΖΙΚΙΣΤΑΝ","TJ",null,null,11]
[464,"ΤΖΑΜΑΙΚΑ","JM",null,null,8]
[338,"ΤΖΙΠΟΥΤΙ","DJ",null,null,8]
[817,"ΤΟΓΚΑ","TO",null,null,5]
[280,"ΤΟΓΚΟ","TG",null,null,5]
[820,"ΤΟΚΕΛΑΟΥ","TK",null,null,8]
[807,"ΤΟΥΒΑΛΟΥ","TV",null,null,8]
[52,"ΤΟΥΡΚΙΑ","TR",null,null,7]
[80,"ΤΟΥΡΚΜΕΝΙΣΤΑΝ","TM",null,null,13]
[472,"ΤΡΙΝΙΝΤΑΤ ΚΑΙ ΤΟΜΠΑΓΚΟ","TT",null,null,22]
[244,"ΤΣΑΝΤ","TD",null,null,5]
[61,"ΤΣΕΧΙΑ","CZ","Τσεχία","Τσεχία",6]
[212,"ΤΥΝΗΣΙΑ","TN",null,null,7]
[653,"ΥΕΜΕΝΗ","YE",null,null,6]
[708,"ΦΙΛΙΠΠΙΝΕΣ","PH",null,null,10]
[32,"ΦΙΝΛΑΝΔΙΑ ","FI","Φινλανδία","Φινλανδία",10]
[815,"ΦΙΤΖΙ","FJ",null,null,5]
[512,"ΧΙΛΗ","CL",null,null,4]
[740,"ΧΟΝΓΚ ΚΟΝΓΚ","HK",null,null,11]
[802,"ΩΚΕΑΝΙΚΗ ΑΥΣΤΡΑΛΙΑ","XO",null,null,18]
[]
[240,"rows selected."]